bitfinex-derivatives/quotes_SOLF0:USTF0_20220110
["timestamp","ask_amount","ask_price","bid_price","bid_amount"]
[1641845736420,27.66479,132.22,132.11,1.891]
[1641845736621,27.66479,132.22,132.12,0.85671168]
[1641845736819,27.66479,132.22,132.13,1.891]
[1641845737022,4.28120524,132.21,132.13,1.891]
[1641845737221,13.49920524,132.21,132.13,21.891]
[1641845737422,13.49920524,132.21,132.14,0.85671168]
[1641845737821,13.49920524,132.21,132.15,27.66479]
[1641845738021,9.218,132.21,132.16,20.0]
[1641845738321,27.66479,132.25,132.16,22.74771168]
[1641845738521,10.44896227,132.31,132.16,22.74771168]
[1641845738723,4.28055145,132.24,132.18,20.0]
[1641845738921,4.28055145,132.24,132.17,0.85671168]
[1641845739121,8.4,132.24,132.19,0.85671168]
[1641845739524,8.4,132.24,132.17,0.85671168]
[1641845740023,8.4,132.24,132.18,27.66479]
[1641845740522,4.28075477,132.23,132.19,0.85671168]
[1641845740922,8.4,132.24,132.19,0.85671168]
[1641845743025,4.28086158,132.23,132.19,0.85671168]
[1641845743928,27.66479,132.22,132.17,0.85671168]
[1641845744329,27.66479,132.26,132.16,0.85671168]
[1641845744529,27.66479,132.26,132.17,1.889]
[1641845744730,27.66479,132.26,132.17,21.889]
[1641845744928,4.28033055,132.25,132.17,1.889]
[1641845745330,4.28033055,132.25,132.18,0.85671168]
[1641845745930,27.66479,132.22,132.18,0.85671168]
[1641845746132,35.97179,132.22,132.18,0.85671168]
[1641845746330,35.97179,132.22,132.17,10.30944007]
[1641845746730,35.97179,132.22,132.18,0.85671168]
[1641845747331,4.28139371,132.21,132.18,0.85671168]
[1641845747632,4.28139371,132.21,132.15,0.85671168]
[1641845748533,4.28139371,132.21,132.13,0.85671168]
[1641845748933,4.28139371,132.21,132.13,16.80551024]
[1641845749433,4.28139371,132.21,132.14,0.85671168]
[1641845749634,10.33260538,132.21,132.14,0.85671168]
[1641845749835,10.33260538,132.21,132.15,15.94879856]
[1641845750033,4.28139371,132.21,132.15,23.62679856]
[1641845750234,7.25872694,132.26,132.16,0.85671168]
[1641845750433,7.25872694,132.26,132.16,2.74571168]
[1641845750634,21.99635607,132.29,132.16,2.74571168]
[1641845750833,4.28056275,132.25,132.17,0.85671168]
[1641845751233,13.30654364,132.27,132.17,0.85671168]
[1641845751434,6.04982482,132.24,132.17,0.85671168]
[1641845751933,27.66479,132.23,132.17,0.85671168]
[1641845752134,31.94535275,132.23,132.15,0.85671168]
[1641845752634,4.28056275,132.22,132.15,0.85671168]
[1641845752835,12.64256275,132.22,132.15,0.85671168]
[1641845753536,4.28056275,132.21,132.15,0.85671168]
[1641845753739,4.28056275,132.21,132.17,20.0]
[1641845753939,27.66479,132.29,132.19,27.66479]
[1641845754137,15.94879856,132.27,132.21,20.0]
[1641845754337,15.94879856,132.27,132.21,28.041]
[1641845754537,15.94879856,132.32,132.23,20.0]
[1641845755238,15.94879856,132.32,132.25,20.0]
[1641845755437,4.2789815,132.31,132.25,20.0]
[1641845755637,4.2789815,132.31,132.25,21.889]
[1641845755838,4.2789815,132.31,132.26,1.67922193]
[1641845756037,4.2789815,132.31,132.27,47.66479]
[1641845756238,4.2789815,132.34,132.27,47.66479]
[1641845756438,4.2789815,132.34,132.27,55.61179]
[1641845756639,4.2789815,132.34,132.3,20.0]
[1641845756838,10.93052717,132.37,132.32,20.0]
[1641845757339,15.92735575,132.39,132.36,20.0]
[1641845757542,15.92735575,132.39,132.36,28.198]
[1641845757740,15.92735575,132.39,132.36,8.198]
[1641845758040,15.92735575,132.39,132.37,1.71887879]
[1641845758041,4.27610019,132.38,132.37,1.71887879]
[1641845758842,4.27610019,132.38,132.37,7.879e-05]
[1641845759042,27.37290404,132.41,132.33,47.66479]
[1641845759444,23.09680385,132.43,132.33,47.66479]
[1641845760043,4.27629637,132.43,132.34,1.27266698]
[1641845760642,29.26450767,132.43,132.34,1.27266698]
[1641845761444,2.7523907,132.42,132.34,1.27266698]
[1641845761644,9.1503907,132.42,132.34,1.27266698]
[1641845762046,27.66479,132.4,132.34,1.27266698]
[1641845762547,4.27629637,132.39,132.32,1.27266698]
[1641845762746,11.10629637,132.39,132.34,20.0]
[1641845762945,27.66479,132.44,132.34,27.359]
[1641845763146,27.66479,132.44,132.35,1.887]
[1641845763345,27.66479,132.44,132.36,20.0]
[1641845763546,27.66479,132.44,132.37,1.887]
[1641845763946,27.66479,132.47,132.37,9.275]
[1641845764145,27.66479,132.47,132.38,20.0]
[1641845764347,4.27553554,132.46,132.4,20.0]
[1641845764547,4.27553554,132.46,132.42,20.0]
[1641845764746,4.27553554,132.48,132.42,20.0]
[1641845764946,4.27553554,132.48,132.43,1.887]
[1641845765148,4.27553554,132.48,132.44,20.0]
[1641845765445,4.27553554,132.51,132.45,20.0]
[1641845765945,4.27553554,132.47,132.45,51.09483713]
[1641845766146,35.47985152,132.52,132.46,3.43004713]
[1641845766346,27.66479,132.54,132.46,5.31504713]
[1641845766544,27.66479,132.54,132.46,3.43004713]
[1641845766945,33.70088066,132.54,132.46,3.43004713]
[1641845767447,14.96601235,132.53,132.45,3.43004713]
[1641845767947,14.96601235,132.53,132.33,42.47985152]
[1641845767948,14.96601235,132.53,132.46,27.66479]
[1641845768147,14.96601235,132.53,132.46,47.66479]
[1641845768347,27.66479,132.54,132.47,5.011981]
[1641845768748,27.66479,132.54,132.48,3.126981]
[1641845769650,27.66479,132.54,132.48,32.280981]
[1641845770049,27.66479,132.54,132.49,1.885]
[1641845770250,27.66479,132.54,132.49,5.011981]
[1641845770649,27.66479,132.54,132.5,3.126981]
[1641845771050,27.66479,132.54,132.44,27.66479]
[1641845771249,36.23979,132.54,132.44,27.66479]
[1641845771450,15.13297231,132.53,132.45,3.11062022]
[1641845772049,27.66479,132.54,132.47,27.66479]
[1641845772550,27.66479,132.54,132.48,3.11062022]
[1641845772753,6.03666585,132.53,132.48,3.11062022]
[1641845772951,6.03810883,132.5,132.4,1.885]
[1641845773149,13.55010883,132.5,132.38,1.887]
[1641845773351,13.55010883,132.5,132.34,1.887]
[1641845773550,6.03898879,132.48,132.34,1.887]
[1641845773750,6.03898879,132.48,132.34,21.887]
[1641845773952,6.03898879,132.48,132.36,20.0]
[1641845774154,27.66479,132.45,132.36,47.66479]
[1641845774353,34.03779,132.45,132.36,47.66479]
[1641845774954,34.03779,132.45,132.36,27.66479]
[1641845776854,73.8512,132.49,132.36,27.66479]
[1641845777056,7.24386613,132.53,132.37,1.887]
[1641845777656,7.24386613,132.53,132.39,20.0]
[1641845777856,7.24386613,132.53,132.4,1.887]
[1641845778057,27.66479,132.5,132.4,29.55179]
[1641845778457,27.66479,132.5,132.41,20.0]
[1641845778857,27.66479,132.5,132.4,29.55179]
[1641845780359,27.66479,132.5,132.41,20.0]
[1641845781662,4.27437003,132.49,132.41,20.0]
[1641845782062,4.27437003,132.51,132.42,27.66479]
[1641845782260,4.27437003,132.51,132.45,20.0]
[1641845782461,4.27437003,132.51,132.45,5.661]
[1641845782660,4.27437003,132.51,132.45,25.661]
[1641845783262,4.27437003,132.51,132.47,20.0]
[1641845783461,4.27437003,132.51,132.46,1.885]
[1641845783660,4.27437003,132.51,132.44,1.887]
[1641845784062,4.27437003,132.51,132.46,27.66479]
[1641845784261,4.27437003,132.51,132.46,35.52979]
[1641845784463,4.27437003,132.54,132.46,35.52979]
[1641845785162,4.27437003,132.54,132.47,20.0]
[1641845785362,4.27437003,132.54,132.47,1.885]
[1641845785864,2.75235523,132.53,132.47,1.885]
[1641845786263,2.75235523,132.53,132.47,21.885]
[1641845786463,4.27437003,132.52,132.47,21.885]
[1641845787565,4.27437003,132.54,132.47,21.885]
[1641845787966,4.27437003,132.54,132.47,1.885]
[1641845788165,4.27437003,132.54,132.48,3.35489091]
[1641845788367,10.31062723,132.54,132.48,3.35489091]
[1641845788565,10.31062723,132.54,132.41,1.885]
[1641845788766,10.31062723,132.54,132.41,21.885]
[1641845788767,17.62662723,132.54,132.41,21.885]
[1641845789068,4.27437003,132.53,132.42,3.3559226]
[1641845789268,4.27437003,132.53,132.43,21.887]
[1641845789668,2.75815837,132.52,132.44,3.3559226]
[1641845790068,8.79523443,132.52,132.44,3.3559226]
[1641845790269,27.66479,132.48,132.44,3.3559226]
[1641845790468,35.03179,132.48,132.44,3.3559226]
[1641845790669,35.03179,132.48,132.39,3.3559226]
[1641845790870,4.27437003,132.47,132.39,23.3559226]
[1641845791069,4.27437003,132.47,132.42,20.0]
[1641845791272,4.27437003,132.47,132.42,26.487]
[1641845791469,4.27437003,132.47,132.43,1.887]
[1641845791669,4.27437003,132.47,132.42,20.0]
[1641845791870,4.27437003,132.47,132.43,3.3559226]
[1641845792069,43.56075172,132.5,132.43,9.8649226]
[1641845792070,4.27437003,132.49,132.43,9.8649226]
[1641845792271,4.27437003,132.49,132.43,11.7519226]
[1641845792473,4.27437003,132.49,132.44,3.3559226]
[1641845793475,20.17033175,132.51,132.44,3.3559226]
[1641845793873,4.27437003,132.5,132.44,3.3559226]
[1641845794274,7.03877159,132.5,132.44,3.3559226]
[1641845794774,4.27437003,132.49,132.44,3.3559226]
[1641845794974,7.03877159,132.49,132.44,3.3559226]
[1641845795275,7.03877159,132.49,132.42,3.3559226]
[1641845795473,20.05212084,132.49,132.42,3.3559226]
[1641845795673,24.05212084,132.49,132.37,15.89596172]
[1641845795876,6.76440156,132.48,132.37,15.89596172]
[1641845796076,7.03877159,132.48,132.41,3.35761602]
[1641845796276,34.70356159,132.48,132.41,3.35761602]
[1641845796476,30.42919156,132.48,132.41,7.792]
[1641845796679,2.76440156,132.47,132.41,7.792]
[1641845796874,2.76440156,132.47,132.42,2.65182336]
[1641845796875,7.03910081,132.47,132.42,2.65182336]
[1641845797276,4.27469925,132.46,132.42,2.65182336]
[1641845797575,2.76440156,132.47,132.43,20.0]
[1641845797776,15.89596172,132.5,132.44,1.887]
[1641845797975,15.89596172,132.5,132.44,10.366]
[1641845798176,15.89596172,132.5,132.44,38.03079]
[1641845798578,15.89596172,132.53,132.44,38.03079]
[1641845798980,4.27365897,132.52,132.45,3.3555282]
[1641845800181,27.66479,132.51,132.45,3.3555282]
[1641845800584,4.27365897,132.5,132.43,3.3555282]
[1641845800783,4.27365897,132.5,132.44,20.0]
[1641845800984,4.27365897,132.5,132.45,1.887]
[1641845801184,4.27365897,132.5,132.47,20.0]
[1641845801383,4.27365897,132.5,132.48,1.887]
[1641845801985,4.27365897,132.5,132.49,3.3555282]
[1641845802184,15.89596172,132.54,132.49,31.0203182]
[1641845802383,15.89596172,132.54,132.49,51.0203182]
[1641845802583,15.89596172,132.54,132.51,20.0]
[1641845802783,15.89596172,132.54,132.51,25.867]
[1641845803383,15.93542342,132.58,132.52,3.5800155]
[1641845803584,15.93542342,132.58,132.53,20.0]
[1641845804185,15.93542342,132.58,132.53,47.66479]
[1641845804385,15.93542342,132.58,132.55,20.0]
[1641845804585,35.47985152,132.63,132.56,6.15614862]
[1641845804785,4.14195499,132.57,132.56,4.27114862]
[1641845804985,35.47985152,132.63,132.56,6.15614862]
[1641845805186,35.47985152,132.63,132.56,4.27114862]
[1641845805588,31.66479,132.64,132.56,4.27114862]
[1641845805986,27.66479,132.64,132.56,4.27114862]
[1641845806188,27.66479,132.62,132.56,4.27114862]
[1641845806390,27.66479,132.62,132.54,6.15614862]
[1641845806790,27.66479,132.62,132.55,4.27114862]
[1641845807490,2.75611046,132.61,132.55,4.27114862]
[1641845808191,2.75611046,132.61,132.57,27.66479]
[1641845809392,2.75611046,132.63,132.57,27.66479]
[1641845810395,2.75611046,132.63,132.58,4.27103109]
[1641845810795,2.75611046,132.63,132.57,27.66479]
[1641845812096,2.75611046,132.63,132.57,47.66479]
[1641845812497,2.75611046,132.63,132.58,4.27083961]
[1641845812696,2.75611046,132.63,132.58,12.79183961]
[1641845813196,2.75611046,132.63,132.6,20.0]
[1641845813396,1.046e-05,132.63,132.62,20.0]
[1641845813597,10.89496913,132.65,132.62,36.76599598]
[1641845813798,46.37482065,132.69,132.63,1.883]
[1641845813998,46.37482065,132.69,132.64,20.0]
[1641845814300,46.37482065,132.69,132.66,27.66479]
[1641845814499,46.37482065,132.69,132.63,1.883]
[1641845814698,54.82582065,132.69,132.61,1.883]
[1641845814898,54.82582065,132.69,132.62,20.0]
[1641845815100,8.451,132.69,132.62,20.0]
[1641845815299,8.451,132.69,132.61,1.883]
[1641845815500,8.451,132.69,132.63,4.2692158]
[1641845815699,67.14464152,132.73,132.63,4.2692158]
[1641845816200,50.37482065,132.72,132.63,31.9340058]
[1641845816400,46.37482065,132.72,132.63,31.9340058]
[1641845816601,46.37482065,132.72,132.64,24.2692158]
[1641845816803,46.37482065,132.72,132.66,20.0]
[1641845817101,27.66479,132.73,132.66,27.236]
[1641845817701,27.66479,132.73,132.66,7.236]
[1641845818302,27.66479,132.73,132.66,34.90079]
[1641845819403,4.0,132.72,132.66,34.90079]
[1641845819602,4.0,132.72,132.64,1.883]
[1641845819603,13.046,132.72,132.64,1.883]
[1641845819802,4.0,132.71,132.59,1.883]
[1641845820002,13.046,132.72,132.59,1.883]
[1641845820203,27.66479,132.7,132.6,47.66479]
[1641845820404,1.5402281,132.7,132.62,20.0]
[1641845820603,1.5402281,132.7,132.61,1.883]
[1641845820803,1.5402281,132.69,132.61,6.1523284]
[1641845821203,4.0,132.7,132.62,4.2693284]
[1641845821405,4.0,132.68,132.62,4.2693284]
[1641845821606,4.0,132.67,132.62,4.2693284]
[1641845821806,13.189,132.68,132.62,4.2693284]
[1641845822007,4.0,132.68,132.62,4.2693284]
[1641845822205,1.5402281,132.66,132.59,4.2693284]
[1641845822404,1.5402281,132.66,132.6,8.737]
[1641845823007,1.5402281,132.66,132.61,4.2693284]
[1641845823604,5.5402281,132.66,132.57,1.883]
[1641845823805,4.0,132.64,132.51,1.885]
[1641845824005,6.03294191,132.61,132.47,1.885]
[1641845824204,4.0,132.58,132.47,1.885]
[1641845824405,27.66479,132.54,132.45,27.66479]
[1641845824607,35.99879,132.54,132.45,27.66479]
[1641845824805,35.99879,132.54,132.46,20.0]
[1641845825006,35.99879,132.54,132.47,1.885]
[1641845825207,2.39628799,132.53,132.47,28.00448463]
[1641845825706,35.99879,132.54,132.48,26.11948463]
[1641845826007,35.99879,132.54,132.49,1.885]
[1641845826306,2.39646042,132.53,132.48,4.27209093]
[1641845826508,6.39646042,132.53,132.5,4.27209093]
[1641845826906,6.39646042,132.53,132.44,46.12343736]
[1641845827108,2.39646042,132.52,132.44,46.12343736]
[1641845827308,2.39646042,132.52,132.44,26.12343736]
[1641845827508,2.39646042,132.52,132.45,4.27209093]
[1641845827909,2.39646042,132.52,132.44,48.01048169]
[1641845828307,2.39646042,132.53,132.45,4.27209093]
[1641845828708,2.39646042,132.53,132.49,20.0]
[1641845828907,2.39646042,132.53,132.49,26.05]
[1641845829309,4.0,132.6,132.5,6.15709093]
[1641845829610,2.82271824,132.59,132.53,20.0]
[1641845829908,2.82271824,132.59,132.55,20.0]
[1641845830108,2.82271824,132.6,132.55,20.0]
[1641845830308,2.82271824,132.6,132.58,27.66479]
[1641845830511,2.82271824,132.63,132.58,36.91079]
[1641845830710,2.82271824,132.63,132.58,29.246]
[1641845830910,2.82271824,132.63,132.59,4.27209093]
[1641845831310,2.82271824,132.64,132.59,4.27209093]
[1641845832112,2.82271824,132.64,132.59,12.20509093]
[1641845832310,2.82271824,132.64,132.59,7.933]
[1641845833914,4.0,132.62,132.53,1.885]
[1641845834315,30.48750824,132.61,132.54,4.27105891]
[1641845834915,2.82271824,132.6,132.54,4.27105891]
[1641845835316,2.82271824,132.6,132.51,4.27105891]
[1641845835718,2.82271824,132.6,132.54,20.0]
[1641845835917,2.82271824,132.6,132.54,27.782]
[1641845836118,2.82271824,132.6,132.55,4.27105891]
[1641845836319,2.82271824,132.6,132.56,27.66479]
[1641845836519,2.82271824,132.61,132.56,27.66479]
[1641845836920,2.82271824,132.61,132.57,4.27105891]
[1641845837120,2.82271824,132.61,132.57,12.97805891]
[1641845837321,2.82271824,132.64,132.57,12.97805891]
[1641845837721,2.82271824,132.64,132.58,4.27105891]
[1641845838421,2.82271824,132.64,132.58,10.25305891]
[1641845838623,2.82271824,132.64,132.63,20.0]
[1641845838823,2.82271824,132.64,132.63,6.197]
[1641845839222,18.70265546,132.66,132.63,10.46805891]
[1641845839621,2.82271824,132.65,132.64,4.27105891]
[1641845840121,2.82271824,132.65,132.57,1.883]
[1641845840324,27.66479,132.68,132.58,47.66479]
[1641845840724,27.66479,132.68,132.58,27.66479]
[1641845840926,4.0,132.66,132.59,4.26939262]
[1641845841424,2.82271824,132.65,132.59,4.26939262]
[1641845842023,2.82271824,132.65,132.56,28.26939262]
[1641845842225,2.82271824,132.66,132.57,1.885]
[1641845842429,2.82271824,132.66,132.58,27.66479]
[1641845842625,2.82271824,132.64,132.58,55.34779]
[1641845842825,2.82271824,132.64,132.6,20.0]
[1641845843025,2.82271824,132.66,132.62,20.0]
[1641845843226,2.82271824,132.66,132.62,28.335]
[1641845843425,2.82271824,132.66,132.63,4.26939262]
[1641845844526,2.82271824,132.68,132.63,4.26939262]
[1641845844726,2.82271824,132.65,132.64,20.0]
[1641845844927,15.87993722,132.69,132.65,1.883]
[1641845845126,15.87993722,132.69,132.66,20.0]
[1641845845325,51.35978874,132.72,132.66,20.0]
[1641845845527,15.87993722,132.72,132.66,20.0]
[1641845846026,1.97251547,132.71,132.67,4.26775421]
[1641845846226,1.97251547,132.71,132.67,6.15075421]
[1641845846425,1.97251547,132.71,132.67,4.26775421]
[1641845847025,7.77651547,132.71,132.65,4.26775421]
[1641845847325,1.97251547,132.7,132.65,4.26775421]
[1641845848433,27.66479,132.67,132.65,4.26775421]
[1641845848632,35.18979,132.67,132.63,4.26775421]
[1641845849030,1.97251547,132.66,132.6,4.26775421]
[1641845849431,1.97251547,132.66,132.6,24.26775421]
[1641845849632,1.97251547,132.68,132.64,20.0]
[1641845849833,1.97251547,132.68,132.66,20.0]
[1641845850035,1.97251547,132.68,132.67,1.883]
[1641845850238,1.97251547,132.68,132.65,4.26775421]
[1641845850439,1.97251547,132.68,132.67,4.26775421]
[1641845851034,1.97251547,132.68,132.66,8.204]
[1641845851437,1.97251547,132.71,132.66,8.204]
[1641845851636,1.97251547,132.71,132.64,27.66479]
[1641845852235,1.97251547,132.71,132.65,4.26845785]
[1641845853035,1.97251547,132.71,132.65,13.38645785]
[1641845853637,2.74842534,132.7,132.66,4.26845785]
[1641845854037,1.97251547,132.69,132.66,4.26845785]
[1641845855038,1.97251547,132.69,132.61,26.03239325]
[1641845855039,9.76051547,132.69,132.6,1.883]
[1641845855243,11.788,132.69,132.6,1.883]
[1641845855438,4.0,132.68,132.57,1.883]
[1641845855638,6.75019694,132.68,132.57,1.883]
[1641845855839,4.0,132.67,132.57,1.883]
[1641845856039,4.0,132.67,132.56,29.12648987]
[1641845856338,4.0,132.67,132.56,33.12648987]
[1641845856539,27.66479,132.65,132.58,20.0]
[1641845856740,21.8852363,132.66,132.6,20.0]
[1641845856939,3.25510214,132.64,132.6,29.103]
[1641845857142,3.25510214,132.64,132.6,9.103]
[1641845857440,3.25510214,132.65,132.61,4.27013379]
[1641845858239,3.25510214,132.66,132.6,4.27013379]
[1641845858940,3.25510214,132.66,132.59,4.27013379]
[1641845859140,2.75669209,132.65,132.59,4.27013379]
[1641845859542,3.25510214,132.64,132.59,4.27013379]
[1641845859943,3.25510214,132.63,132.59,4.27013379]
[1641845860342,3.25510214,132.62,132.59,4.27013379]
[1641845860544,3.25510214,132.62,132.6,24.0]
[1641845860743,2.75669209,132.65,132.6,25.885]
[1641845861142,2.82736538,132.64,132.61,4.27013379]
[1641845861644,11.73936538,132.65,132.61,4.27013379]
[1641845862044,2.76055614,132.63,132.58,4.27013379]
[1641845862244,2.76055614,132.63,132.59,20.0]
[1641845862446,2.82736538,132.62,132.59,20.0]
[1641845862644,2.82736538,132.62,132.59,25.885]
[1641845863045,6.538e-05,132.62,132.61,20.0]
[1641845863244,6.538e-05,132.62,132.61,34.727]
[1641845863444,6.538e-05,132.62,132.61,30.727]
[1641845863646,43.54472722,132.67,132.61,10.727]
[1641845863846,43.54472722,132.67,132.61,8.842]
[1641845864248,43.54472722,132.67,132.6,1.883]
[1641845864447,2.68834223,132.66,132.62,4.26913]
[1641845864848,5.44925923,132.66,132.61,4.26913]
[1641845865451,2.68834223,132.65,132.61,4.26913]
[1641845865651,2.68834223,132.65,132.61,24.26913]
[1641845865949,5.44925923,132.65,132.63,20.0]
[1641845866150,5.44925923,132.65,132.63,31.617]
[1641845866351,5.923e-05,132.65,132.64,1.883]
[1641845866751,5.923e-05,132.65,132.64,6.15213]
[1641845867151,15.87993722,132.68,132.64,6.15213]
[1641845867354,15.87993722,132.68,132.64,4.26913]
[1641845867653,1.88163292,132.67,132.59,1.883]
[1641845867854,1.88163292,132.67,132.57,17.76293722]
[1641845868154,15.87993722,132.65,132.58,20.0]
[1641845868352,15.87993722,132.65,132.59,1.885]
[1641845868754,1.88163292,132.64,132.6,28.26945978]
[1641845868953,1.88163292,132.64,132.62,20.0]
[1641845869353,15.87993722,132.66,132.63,5.883]
[1641845869553,15.87993722,132.66,132.64,20.0]
[1641845869755,15.87993722,132.66,132.63,8.341]
[1641845869955,15.87993722,132.68,132.63,8.341]
[1641845870153,15.87993722,132.68,132.63,6.458]
[1641845870454,1.67962902,132.67,132.64,4.26891395]
[1641845871055,17.55956624,132.67,132.64,4.26891395]
[1641845871654,1.67962902,132.66,132.62,4.26891395]
[1641845871855,17.55956624,132.66,132.62,4.26891395]
[1641845872659,1.67962902,132.65,132.62,4.26891395]
[1641845873459,1.67962902,132.66,132.62,4.26891395]
[1641845873858,1.67962902,132.66,132.61,4.26891395]
[1641845875361,11.05562902,132.66,132.61,4.26891395]
[1641845875660,11.05562902,132.66,132.59,4.26891395]
[1641845875861,1.67962902,132.65,132.62,4.26891395]
[1641845876061,15.87993722,132.64,132.62,4.26891395]
[1641845876360,17.55956624,132.64,132.58,4.26891395]
[1641845876763,1.67962902,132.63,132.58,4.26891395]
[1641845877064,1.67962902,132.62,132.58,4.26891395]
[1641845877562,1.67962902,132.61,132.58,4.26891395]
[1641845877963,1.67962902,132.6,132.58,4.26891395]
[1641845878364,15.87993722,132.63,132.58,4.26891395]
[1641845878762,1.22368144,132.62,132.58,4.26891395]
[1641845879663,1.22368144,132.62,132.57,4.26891395]
[1641845880063,13.37768144,132.62,132.57,4.26891395]
[1641845880668,27.66479,132.59,132.57,4.26891395]
[1641845880864,34.96179,132.59,132.57,1.395e-05]
[1641845881063,1.22368144,132.58,132.54,1.395e-05]
[1641845881464,34.96179,132.59,132.51,17.76493722]
[1641845881664,27.66479,132.59,132.51,17.76493722]
[1641845881864,15.87993722,132.58,132.51,1.885]
[1641845882266,15.87993722,132.58,132.52,24.0]
[1641845882464,2.31688564,132.57,132.53,21.885]
[1641845882865,2.31688564,132.57,132.54,4.27114772]
[1641845883266,2.31688564,132.58,132.54,4.27114772]
[1641845883766,2.31688564,132.58,132.51,4.27114772]
[1641845884169,18.19682286,132.58,132.51,4.27114772]
[1641845884368,18.19682286,132.58,132.52,20.0]
[1641845884568,2.31688564,132.57,132.53,1.885]
[1641845885066,26.8126196,132.6,132.54,4.27114772]
[1641845885267,15.87993722,132.6,132.54,4.27114772]
[1641845885467,1.88991579,132.59,132.54,4.27114772]
[1641845887966,1.88991579,132.59,132.55,20.0]
[1641845888166,1.88991579,132.6,132.56,1.885]
[1641845888568,1.88991579,132.6,132.57,20.0]
[1641845888769,1.88991579,132.6,132.57,24.27114772]
[1641845889168,1.88991579,132.62,132.58,4.27114772]
[1641845889368,1.88991579,132.62,132.58,12.46714772]
[1641845890071,1.88991579,132.62,132.59,4.27114772]
[1641845890670,1.88991579,132.62,132.59,24.27114772]
[1641845890871,1.88991579,132.62,132.59,1.885]
[1641845891071,1.88991579,132.62,132.58,1.885]
[1641845891072,17.76985301,132.62,132.58,1.885]
[1641845891275,15.87993722,132.62,132.6,4.27114772]
[1641845891672,1.88991579,132.61,132.59,4.27114772]
[1641845892072,1.88991579,132.61,132.58,4.27114772]
[1641845892472,1.88991579,132.61,132.56,6.15614772]
[1641845892873,1.88991579,132.61,132.57,20.0]
[1641845893074,1.88991579,132.62,132.57,24.27114772]
[1641845893474,1.88991579,132.62,132.58,4.27114772]
[1641845893976,1.88991579,132.63,132.58,4.27114772]
[1641845894374,1.88991579,132.61,132.57,4.27114772]
[1641845894575,27.66479,132.58,132.57,4.27114772]
[1641845894875,27.66479,132.58,132.54,4.27114772]
[1641845895274,1.88991579,132.57,132.54,4.27114772]
[1641845895674,1.88991579,132.57,132.5,4.27114772]
[1641845896677,1.88991579,132.57,132.49,25.22445442]
[1641845898678,1.88991579,132.57,132.49,4.27114772]
[1641845899079,1.88991579,132.57,132.5,21.885]
[1641845899277,1.88991579,132.57,132.5,28.569]
[1641845899676,1.88991579,132.57,132.51,4.27114772]
[1641845899878,1.88991579,132.57,132.52,1.885]
[1641845900478,1.88991579,132.57,132.53,4.27114772]
[1641845901279,1.88991579,132.57,132.51,4.27114772]
[1641845901480,1.88991579,132.57,132.51,6.15614772]
[1641845902085,1.88991579,132.57,132.52,4.27114772]
[1641845904590,1.88991579,132.57,132.54,20.0]
[1641845904790,1.579e-05,132.57,132.54,25.885]
[1641845904991,15.87993722,132.6,132.56,20.0]
[1641845905190,15.87993722,132.6,132.56,28.139]
[1641845905390,15.87993722,132.6,132.56,32.139]
[1641845905991,15.87993722,132.63,132.56,32.139]
[1641845906392,1.93793484,132.62,132.57,4.27034307]
[1641845906594,1.93793484,132.62,132.58,1.885]
[1641845906796,1.93793484,132.62,132.58,21.885]
[1641845907194,1.93793484,132.62,132.59,4.27034307]
[1641845907493,1.93793484,132.62,132.6,20.0]
[1641845907694,1.93793484,132.62,132.6,24.0]
[1641845908094,1.93793484,132.63,132.61,4.27034307]
[1641845909396,1.93793484,132.63,132.61,6.15534307]
[1641845909594,1.93793484,132.63,132.62,20.0]
[1641845909894,1.93793484,132.65,132.62,32.06534307]
[1641845910094,1.93793484,132.65,132.63,1.883]
[1641845910295,1.93793484,132.65,132.63,4.27034307]
[1641845911096,1.93793484,132.66,132.63,4.27034307]
[1641845911596,4.0,132.64,132.61,4.307e-05]
[1641845911999,4.0,132.64,132.56,21.885]
[1641845912697,2.75954842,132.63,132.56,21.885]
[1641845912897,10.85654842,132.63,132.56,21.885]
[1641845913097,3.21921075,132.62,132.57,4.27051445]
[1641845913499,5.97875917,132.62,132.57,4.27051445]
[1641845913898,3.21921075,132.61,132.6,20.0]
[1641845914301,3.21921075,132.61,132.6,4.27051445]
[1641845914698,3.21921075,132.63,132.6,4.27051445]